[Event "WALTON 40th BAN-ch U20 Open 2022"]
[Site "Dhaka"]
[Date "2022.02.18"]
[Round "4.8"]
[White "Azharul, Karim"]
[Black "Sajidul, Haque"]
[Result "0-1"]
[ECO "D02"]
[WhiteElo "1315"]
[BlackElo "1766"]
[Annotator "NA RC"]
[PlyCount "56"]
[EventDate "2022.02.15"]
[EventType "swiss"]
[EventCountry "BAN"]
[SourceTitle "playchess.com"]
[Source "ChessBase"]
[SourceQuality "1"]
[TimeControl "5400+30"]

1. d4 {[%emt 0:07:48]} d5 {[%emt 0:00:24]} 2. Bf4 {[%emt 0:00:38]} Nf6 {[%emt 0:00:08]} 3. e3 {[%emt 0:00:07]} e6 {[%emt 0:00:20]} 4. Nf3 {[%emt 0:00:11]} Bd6 {[%emt 0:00:34]} 5. Bg3 {[%emt 0:00:19]} O-O {[%emt 0:01:27]} 6. Bd3 {[%emt 0:00:14]} c5 {[%emt 0:00:29]} 7. c3 {[%emt 0:00:57]} Nc6 {[%emt 0:00:11]} 8. Nbd2 {[%emt 0:00:28]} Re8 {[%emt 0:00:51]} 9. Ne5 {[%emt 0:00:19]} Qe7 {[%emt 0:01:29]} 10. h4 {[%emt 0:03:22]} Nd7 {[%emt 0:03:18]} 11. f4 {[%emt 0:06:52]} Nf8 {[%emt 0:04:43]} 12. Qh5 {[%emt 0:10:30]} f6 {[%emt 0:01:58]} 13. Nef3 {[%emt 0:19:09]} g6 {[%emt 0:01:24]} 14. Qh6 {[%emt 0:07:31]} Nd8 {[%emt 0:01:38]} 15. Ng5 {[%emt 0:00:09]} fxg5 {[%emt 0:00:24]} 16. hxg5 {[%emt 0:00:23]} Nf7 {[%emt 0:02:15]} 17. Qh4 {[%emt 0:03:35]} cxd4 {[%emt 0:01:49]} 18. exd4 {[%emt 0:01:15]} Bb8 {[%emt 0:06:47]} 19. O-O-O {[%emt 0:00:43]} Nd6 {[%emt 0:00:29]} 20. Nf3 {[%emt 0:02:17]} Nf5 {[%emt 0:01:02]} 21. Bxf5 {[%emt 0:02:06]} exf5 {[%emt 0:00:29]} 22. Rde1 {[%emt 0:02:59]} Be6 {[%emt 0:00:49]} 23. Ne5 {[%emt 0:01:12]} Bxe5 {[%emt 0:00:58]} 24. dxe5 {[%emt 0:00:49]} d4 {[%emt 0:00:17]} 25. cxd4 {[%emt 0:01:39]} Bxa2 {[%emt 0:00:14]} 26. Re2 {[%emt 0:02:00]} Rac8+ {[%emt 0:00:36]} 27. Kd1 {[%emt 0:00:40]} Bb3+ {[%emt 0:00:09]} 28. Ke1 {[%emt 0:26:18]} Qd8 {[%emt 1:09:18]} 0-1

[Event "WALTON 40th BAN-ch U20 Open 2022"]
[Site "Dhaka"]
[Date "2022.02.19"]
[Round "5.1"]
[White "Noshin, Anjum"]
[Black "Manon, Reja Neer"]
[Result "0-1"]
[ECO "B15"]
[WhiteElo "2017"]
[BlackElo "2209"]
[Annotator "ChessBase"]
[PlyCount "98"]
[EventDate "2022.02.15"]
[EventType "swiss"]
[EventCountry "BAN"]
[SourceTitle "playchess.com"]
[Source "ChessBase"]
[SourceQuality "1"]
[TimeControl "5400+30"]

1. e4 {[%emt 0:03:16]} c6 {[%emt 0:00:06]} 2. d4 {[%emt 0:00:18]} d5 {[%emt 0:00:06]} 3. Nc3 {[%emt 0:00:08]} dxe4 {[%emt 0:00:06]} 4. Nxe4 {[%emt 0:00:02]} Nf6 {[%emt 0:00:02]} 5. Nxf6+ {[%emt 0:00:13]} exf6 {[%emt 0:00:03]} 6. c3 {[%emt 0:00:09]} Bd6 {[%emt 0:00:05]} 7. Bd3 {[%emt 0:00:06]} O-O {[%emt 0:00:06]} 8. Qc2 {[%emt 0:00:02]} Re8+ {[%emt 0:00:06]} 9. Ne2 {[%emt 0:00:06]} h5 {[%emt 0:00:03]} 10. Be3 {[%emt 0:00:05]} Nd7 {[%emt 0:01:06]} 11. O-O-O {[%emt 0:00:24]} Nf8 {[%emt 0:00:15]} 12. Kb1 {[%emt 0:00:17]} Be6 {[%emt 0:00:08]} 13. c4 {[%emt 0:00:06]} Rc8 {[%emt 0:00:17]} 14. Nc3 {[%emt 0:00:29]} Qa5 {[%emt 0:06:22]} 15. a3 {[%emt 0:06:34]} Bb8 {[%emt 0:12:11]} 16. Ne4 {[%emt 0:08:46]} Rcd8 {[%emt 0:17:14]} 17. Nc5 {[%emt 0:12:26]} Bc8 {[%emt 0:03:17]} 18. Bf5 {[%emt 0:19:01]} Qc7 {[%emt 0:02:55]} 19. g3 {[%emt 0:05:59]} b6 {[%emt 0:09:47]} 20. Nb3 {[%emt 0:12:10]} g6 {[%emt 0:03:49]} 21. Bxc8 {[%emt 0:01:43]} Qxc8 {[%emt 0:00:29]} 22. d5 {[%emt 0:07:13]} c5 {[%emt 0:06:02]} 23. Rhe1 {[%emt 0:07:24]} Qh3 {[%emt 0:02:41]} 24. f4 {[%emt 0:01:12]} h4 {[%emt 0:01:20]} 25. Qf2 {[%emt 0:00:19]} Bd6 {[%emt 0:09:21]} 26. gxh4 {[%emt 0:01:57]} Re7 {[%emt 0:00:58]} 27. Ka2 {[%emt 0:09:25]} Rde8 {[%emt 0:03:14]} 28. Bd2 {[%emt 0:00:09]} Rxe1 {[%emt 0:07:16]} 29. Rxe1 {[%emt 0:00:04]} Rxe1 {[%emt 0:00:06]} 30. Bxe1 {[%emt 0:00:04]} Qd3 {[%emt 0:00:13]} 31. Nd2 {[%emt 0:00:19]} Qf5 {[%emt 0:00:01]} 32. Nf1 {[%emt 0:00:39]} Qe4 {[%emt 0:00:58]} 33. b3 {[%emt 0:01:09]} Bxf4 {[%emt 0:00:32]} 34. Ng3 {[%emt 0:00:43]} Qe5 {[%emt 0:02:13]} 35. Bd2 {[%emt 0:00:23]} Bxd2 {[%emt 0:00:18]} 36. Qxd2 {[%emt 0:00:03]} Nd7 {[%emt 0:00:03]} 37. Qe2 {[%emt 0:00:51]} Kg7 {[%emt 0:01:18]} 38. Qg4 {[%emt 0:02:19]} f5 {[%emt 0:00:43]} 39. Qg5 {[%emt 0:02:33]} f6 {[%emt 0:01:40]} 40. Qd2 {[%emt 0:00:15]} f4 {[%emt 0:00:02]} 41. Ne2 {[%emt 0:00:10]} g5 {[%emt 0:00:53]} 42. hxg5 {[%emt 0:00:23]} fxg5 {[%emt 0:00:01]} 43. Ng1 {[%emt 0:01:29]} Qe4 {[%emt 0:02:42]} 44. Kb2 {[%emt 0:00:29]} Ne5 {[%emt 0:11:22]} 45. Qe2 {[%emt 0:00:16]} Qd4+ {[%emt 0:00:00]} 46. Kc2 {[%emt 0:00:41]} g4 {[%emt 0:00:00]} 47. h3 {[%emt 0:00:34]} f3 {[%emt 0:00:00]} 48. Qd2 {[%emt 0:00:05]} Qxd2+ {[%emt 0:00:00]} 49. Kxd2 {[%emt 0:00:01]} f2 {[%emt 0:00:00]} 0-1

[Event "WALTON 40th BAN-ch U20 Open 2022"]
[Site "Dhaka"]
[Date "2022.02.19"]
[Round "5.2"]
[White "Subrota, Biswas"]
[Black "Swarnavo Choudhury"]
[Result "1-0"]
[ECO "B48"]
[WhiteElo "2202"]
[BlackElo "1945"]
[Annotator "ChessBase"]
[PlyCount "57"]
[EventDate "2022.02.15"]
[EventType "swiss"]
[EventCountry "BAN"]
[SourceTitle "playchess.com"]
[Source "ChessBase"]
[SourceQuality "1"]
[TimeControl "5400+30"]

1. e4 {[%emt 0:00:01]} c5 {[%emt 0:03:36]} 2. Nf3 {[%emt 0:00:02]} e6 {[%emt 0:00:59]} 3. d4 {[%emt 0:00:46]} cxd4 {[%emt 0:00:07]} 4. Nxd4 {[%emt 0:00:02]} Nc6 {[%emt 0:00:10]} 5. Nc3 {[%emt 0:00:01]} Qc7 {[%emt 0:00:08]} 6. Be3 {[%emt 0:00:04]} a6 {[%emt 0:00:06]} 7. g4 {[%emt 0:00:35]} Nxd4 {[%emt 0:02:22]} 8. Qxd4 {[%emt 0:00:12]} b5 {[%emt 0:00:22]} 9. O-O-O {[%emt 0:01:22]} Bb7 {[%emt 0:03:22]} 10. f3 {[%emt 0:00:04]} Rc8 {[%emt 0:04:22]} 11. Qd2 {[%emt 0:00:02]} Bb4 {[%emt 0:23:16]} 12. Bd4 {[%emt 0:00:01]} f6 {[%emt 0:09:47]} 13. a3 {[%emt 0:03:22]} Bxc3 {[%emt 0:06:05]} 14. Bxc3 {[%emt 0:01:05]} d5 {[%emt 0:04:59]} 15. Bd3 {[%emt 0:05:36]} Ne7 {[%emt 0:06:59]} 16. g5 {[%emt 0:02:48]} e5 {[%emt 0:12:47]} 17. gxf6 {[%emt 0:00:11]} gxf6 {[%emt 0:00:09]} 18. Ba5 {[%emt 0:09:30]} Qd6 {[%emt 0:06:42]} 19. Rhg1 {[%emt 0:10:34]} Kf7 {[%emt 0:10:31]} 20. exd5 {[%emt 0:09:14]} f5 {[%emt 0:02:32]} 21. Bb4 {[%emt 0:00:12]} Qf6 {[%emt 0:00:14]} 22. Bxe7 {[%emt 0:01:15]} Kxe7 {[%emt 0:00:10]} 23. Qb4+ {[%emt 0:00:09]} Kf7 {[%emt 0:00:56]} 24. Qb3 {[%emt 0:03:19]} Rcd8 {[%emt 0:00:49]} 25. c4 {[%emt 0:00:15]} Rd7 {[%emt 0:00:56]} 26. d6 {[%emt 0:01:27]} Rxd6 {[%emt 0:00:31]} 27. cxb5+ {[%emt 0:01:33]} Bd5 {[%emt 0:00:23]} 28. Bc4 {[%emt 0:00:15]} Bxc4 {[%emt 0:00:35]} 29. Qxc4+ {[%emt 0:00:04]} 1-0

[Event "WALTON 40th BAN-ch U20 Open 2022"]
[Site "Dhaka"]
[Date "2022.02.19"]
[Round "5.3"]
[White "Zia, Tahsin Tajwar"]
[Black "Md, Azmaeen Parvez Sayor"]
[Result "1-0"]
[ECO "C24"]
[WhiteElo "2283"]
[BlackElo "1920"]
[Annotator "ChessBase"]
[PlyCount "152"]
[EventDate "2022.02.15"]
[EventType "swiss"]
[EventCountry "BAN"]
[SourceTitle "playchess.com"]
[Source "ChessBase"]
[SourceQuality "1"]
[TimeControl "5400+30"]

1. e4 {[%emt 0:00:16]} e5 {[%emt 0:00:34]} 2. Bc4 {[%emt 0:00:13]} Nf6 {[%emt 0:00:16]} 3. d3 {[%emt 0:00:43]} d5 {[%emt 0:01:19]} 4. exd5 {[%emt 0:00:23]} Nxd5 {[%emt 0:00:21]} 5. Nf3 {[%emt 0:02:45]} Nc6 {[%emt 0:03:29]} 6. h3 {[%emt 0:07:31]} Be7 {[%emt 0:01:52]} 7. O-O {[%emt 0:01:40]} O-O {[%emt 0:00:40]} 8. Re1 {[%emt 0:01:19]} Bf6 {[%emt 0:00:36]} 9. Nbd2 {[%emt 0:02:22]} a6 {[%emt 0:03:54]} 10. Ne4 {[%emt 0:00:34]} Be7 {[%emt 0:01:10]} 11. c3 {[%emt 0:03:08]} h6 {[%emt 0:03:20]} 12. Ng3 {[%emt 0:04:53]} Nb6 {[%emt 0:00:52]} 13. Bb3 {[%emt 0:00:28]} Bd6 {[%emt 0:01:41]} 14. Be3 {[%emt 0:00:44]} Re8 {[%emt 0:02:14]} 15. Ne4 {[%emt 0:03:47]} Bf8 {[%emt 0:03:24]} 16. Nfg5 {[%emt 0:01:39]} Nd5 {[%emt 0:02:01]} 17. Qf3 {[%emt 0:24:06]} Be6 {[%emt 0:08:37]} 18. Nxe6 {[%emt 0:00:35]} fxe6 {[%emt 0:00:06]} 19. Rad1 {[%emt 0:02:00]} Bd6 {[%emt 0:10:47]} 20. Qg4 {[%emt 0:03:22]} Kh8 {[%emt 0:04:00]} 21. c4 {[%emt 0:07:13]} Nf6 {[%emt 0:01:18]} 22. Nxf6 {[%emt 0:03:14]} Qxf6 {[%emt 0:00:19]} 23. c5 {[%emt 0:00:46]} Bf8 {[%emt 0:00:50]} 24. Ba4 {[%emt 0:00:23]} Qf5 {[%emt 0:01:23]} 25. Qe4 {[%emt 0:04:50]} Qxe4 {[%emt 0:02:35]} 26. dxe4 {[%emt 0:00:01]} Red8 {[%emt 0:00:48]} 27. Bxc6 {[%emt 0:00:24]} bxc6 {[%emt 0:00:15]} 28. Kf1 {[%emt 0:00:41]} Kg8 {[%emt 0:02:56]} 29. Ke2 {[%emt 0:01:49]} Kf7 {[%emt 0:01:05]} 30. b3 {[%emt 0:02:00]} Ke8 {[%emt 0:01:11]} 31. Rc1 {[%emt 0:01:41]} Rdb8 {[%emt 0:04:18]} 32. Rc4 {[%emt 0:02:05]} Rd8 {[%emt 0:06:15]} 33. Rec1 {[%emt 0:01:05]} Rd7 {[%emt 0:01:48]} 34. R1c2 {[%emt 0:01:27]} Kd8 {[%emt 0:03:00]} 35. Bc1 {[%emt 0:01:28]} Be7 {[%emt 0:01:17]} 36. Bb2 {[%emt 0:01:40]} Bf6 {[%emt 0:00:18]} 37. Rd2 {[%emt 0:02:35]} Rxd2+ {[%emt 0:01:11]} 38. Kxd2 {[%emt 0:00:01]} Kc8 {[%emt 0:00:32]} 39. Rc3 {[%emt 0:00:42]} Kd7 {[%emt 0:04:27]} 40. Ke2 {[%emt 0:00:32]} Rd8 {[%emt 0:01:26]} 41. Bc1 {[%emt 0:06:05]} Kc8 {[%emt 0:01:59]} 42. Be3 {[%emt 0:00:04]} Rd7 {[%emt 0:00:49]} 43. Rc1 {[%emt 0:00:27]} Rd8 {[%emt 0:02:15]} 44. Rg1 {[%emt 0:00:08]} Rh8 {[%emt 0:02:24]} 45. Rd1 {[%emt 0:01:03]} Rd8 {[%emt 0:00:50]} 46. Rh1 {[%emt 0:00:05]} Rh8 {[%emt 0:01:06]} 47. g3 {[%emt 0:01:19]} Kd7 {[%emt 0:02:06]} 48. f4 {[%emt 0:00:39]} a5 {[%emt 0:01:19]} 49. Kf3 {[%emt 0:02:06]} Rb8 {[%emt 0:00:51]} 50. f5 {[%emt 0:02:02]} exf5 {[%emt 0:00:54]} 51. exf5 {[%emt 0:00:05]} a4 {[%emt 0:00:16]} 52. Rb1 {[%emt 0:01:04]} Rb4 {[%emt 0:02:15]} 53. Bd2 {[%emt 0:01:03]} Rd4 {[%emt 0:01:25]} 54. Ke2 {[%emt 0:00:23]} axb3 {[%emt 0:01:18]} 55. Rxb3 {[%emt 0:01:00]} Rc4 {[%emt 0:01:00]} 56. Rc3 {[%emt 0:00:40]} Ra4 {[%emt 0:00:58]} 57. a3 {[%emt 0:00:50]} e4 {[%emt 0:02:28]} 58. Rb3 {[%emt 0:00:12]} Rc4 {[%emt 0:00:23]} 59. Be3 {[%emt 0:01:38]} Be7 {[%emt 0:01:48]} 60. Rb4 {[%emt 0:00:44]} Rc2+ {[%emt 0:01:00]} 61. Kd1 {[%emt 0:00:43]} Rc3 {[%emt 0:02:15]} 62. Kd2 {[%emt 0:00:28]} Rxa3 {[%emt 0:00:53]} 63. Rd4+ {[%emt 0:00:09]} Ke8 {[%emt 0:00:55]} 64. Rxe4 {[%emt 0:02:28]} Kf7 {[%emt 0:00:42]} 65. Re6 {[%emt 0:00:00]} Ra6 {[%emt 0:00:57]} 66. g4 {[%emt 0:00:00]} Bf6 {[%emt 0:00:53]} 67. Kd3 {[%emt 0:00:00]} Ra3+ {[%emt 0:00:17]} 68. Kc4 {[%emt 0:00:08]} Ra6 {[%emt 0:00:37]} 69. Kb4 {[%emt 0:00:15]} Be7 {[%emt 0:00:40]} 70. Bf4 {[%emt 0:00:17]} Bd8 {[%emt 0:00:10]} 71. Be5 {[%emt 0:00:07]} Kf8 {[%emt 0:00:40]} 72. Rg6 {[%emt 0:00:14]} Ra8 {[%emt 0:00:51]} 73. Bxg7+ {[%emt 0:00:24]} Kf7 {[%emt 0:00:08]} 74. Bxh6 {[%emt 0:00:49]} Bf6 {[%emt 0:00:12]} 75. g5 {[%emt 0:00:12]} Rb8+ {[%emt 0:00:09]} 76. Kc4 {[%emt 0:00:07]} Ke7 {[%emt 0:02:22]} 1-0

[Event "WALTON 40th BAN-ch U20 Open 2022"]
[Site "Dhaka"]
[Date "2022.02.19"]
[Round "5.5"]
[White "Mohammed, Sagar Ullah"]
[Black "Justin Matthias Baroi"]
[Result "0-1"]
[ECO "C02"]
[WhiteElo "1924"]
[BlackElo "1575"]
[Annotator "ChessBase"]
[PlyCount "68"]
[EventDate "2022.02.15"]
[EventType "swiss"]
[EventCountry "BAN"]
[SourceTitle "playchess.com"]
[Source "ChessBase"]
[SourceQuality "1"]
[TimeControl "5400+30"]

1. e4 {[%emt 0:00:32]} e6 {[%emt 0:00:24]} 2. d4 {[%emt 0:00:23]} d5 {[%emt 0:00:37]} 3. e5 {[%emt 0:01:05]} c5 {[%emt 0:00:57]} 4. c3 {[%emt 0:00:34]} Nc6 {[%emt 0:01:16]} 5. Nf3 {[%emt 0:01:19]} Bd7 {[%emt 0:02:01]} 6. Bd3 {[%emt 0:00:45]} Qb6 {[%emt 0:05:25]} 7. dxc5 {[%emt 0:04:39]} Bxc5 {[%emt 0:02:02]} 8. O-O {[%emt 0:00:25]} a5 {[%emt 0:07:07]} 9. Nbd2 {[%emt 0:01:51]} a4 {[%emt 0:04:57]} 10. b4 {[%emt 0:00:09]} axb3 {[%emt 0:00:15]} 11. Nxb3 {[%emt 0:00:01]} Nge7 {[%emt 0:05:47]} 12. a4 {[%emt 0:02:59]} Na5 {[%emt 0:19:11]} 13. Nxc5 {[%emt 0:02:45]} Qxc5 {[%emt 0:00:39]} 14. Qc2 {[%emt 0:01:33]} Rc8 {[%emt 0:10:16]} 15. Bb2 {[%emt 0:01:40]} Nc4 {[%emt 0:09:21]} 16. Bxc4 {[%emt 0:03:27]} Qxc4 {[%emt 0:01:43]} 17. Rfc1 {[%emt 0:00:16]} Nf5 {[%emt 0:06:31]} 18. Qd1 {[%emt 0:03:35]} Qg4 {[%emt 0:05:35]} 19. h3 {[%emt 0:01:13]} Qf4 {[%emt 0:00:38]} 20. Qb3 {[%emt 0:03:52]} Bc6 {[%emt 0:01:50]} 21. Re1 {[%emt 0:01:06]} d4 {[%emt 0:06:03]} 22. Nxd4 {[%emt 0:02:30]} Nxd4 {[%emt 0:00:23]} 23. cxd4 {[%emt 0:00:18]} Qg5 {[%emt 0:02:20]} 24. f3 {[%emt 0:03:45]} O-O {[%emt 0:01:36]} 25. Qe3 {[%emt 0:00:48]} Qg6 {[%emt 0:00:49]} 26. Ba3 {[%emt 0:00:29]} Rfe8 {[%emt 0:00:14]} 27. Bc5 {[%emt 0:00:28]} f6 {[%emt 0:02:37]} 28. Kh2 {[%emt 0:00:36]} fxe5 {[%emt 0:00:34]} 29. Qxe5 {[%emt 0:00:40]} Rcd8 {[%emt 0:00:44]} 30. Qg3 {[%emt 0:01:37]} Qf6 {[%emt 0:01:09]} 31. a5 {[%emt 0:00:33]} Rd5 {[%emt 0:00:19]} 32. a6 {[%emt 0:00:56]} Rg5 {[%emt 0:01:01]} 33. Qc7 {[%emt 0:01:07]} Rxg2+ {[%emt 0:00:17]} 34. Kh1 {[%emt 0:03:12]} Qxf3 {[%emt 0:00:30]} 0-1

[Event "WALTON 40th BAN-ch U20 Open 2022"]
[Site "Dhaka"]
[Date "2022.02.19"]
[Round "5.6"]
[White "Mortuza Muhtadi, Islam"]
[Black "Dibya, Das Gupta"]
[Result "0-1"]
[ECO "D63"]
[WhiteElo "1485"]
[BlackElo "1923"]
[Annotator "ChessBase"]
[PlyCount "52"]
[EventDate "2022.02.15"]
[EventType "swiss"]
[EventCountry "BAN"]
[SourceTitle "playchess.com"]
[Source "ChessBase"]
[SourceQuality "1"]
[TimeControl "5400+30"]

1. d4 {[%emt 0:00:07]} d5 {[%emt 0:01:14]} 2. c4 {[%emt 0:00:08]} e6 {[%emt 0:00:20]} 3. Nf3 {[%emt 0:00:04]} Nf6 {[%emt 0:00:16]} 4. Bg5 {[%emt 0:00:13]} Be7 {[%emt 0:00:17]} 5. Nc3 {[%emt 0:00:12]} O-O {[%emt 0:00:46]} 6. e3 {[%emt 0:00:19]} a6 {[%emt 0:00:54]} 7. Bd3 {[%emt 0:00:27]} dxc4 {[%emt 0:00:11]} 8. Bxc4 {[%emt 0:00:06]} b5 {[%emt 0:00:04]} 9. Bd3 {[%emt 0:01:16]} Bb7 {[%emt 0:00:14]} 10. O-O {[%emt 0:01:17]} Nbd7 {[%emt 1:31:14]} 11. Rc1 {[%emt 0:09:13]} c5 {[%emt 0:00:00]} 12. b3 {[%emt 0:09:13]} Rc8 {[%emt 0:00:00]} 13. Qe2 {[%emt 0:02:01]} Qa5 {[%emt 0:00:00]} 14. Bxf6 {[%emt 0:11:15]} Bxf6 {[%emt 0:00:00]} 15. Ne4 {[%emt 0:01:20]} Be7 {[%emt 0:00:00]} 16. Rfd1 {[%emt 0:30:29]} g6 {[%emt 0:00:00]} 17. h4 {[%emt 0:10:13]} cxd4 {[%emt 0:00:00]} 18. exd4 {[%emt 0:00:28]} Nf6 {[%emt 0:00:00]} 19. Qd2 {[%emt 0:14:39]} Qxd2 {[%emt 0:00:00]} 20. Nexd2 {[%emt 0:01:01]} Ba3 {[%emt 0:00:00]} 21. Rxc8 {[%emt 0:02:17]} Rxc8 {[%emt 0:00:00]} 22. Ne5 {[%emt 0:00:44]} Nd5 {[%emt 0:00:00]} 23. Be4 {[%emt 0:03:56]} f6 {[%emt 0:00:00]} 24. Nd3 {[%emt 0:00:26]} Bd6 {[%emt 0:00:00]} 25. Rc1 {[%emt 0:00:39]} Rxc1+ {[%emt 0:00:00]} 26. Nxc1 {[%emt 0:00:03]} Bf4 {[%emt 0:00:00]} 0-1

[Event "WALTON 40th BAN-ch U20 Open 2022"]
[Site "Dhaka"]
[Date "2022.02.19"]
[Round "5.7"]
[White "Siam, Chowdhury"]
[Black "Mortuza Mahathir, Islam"]
[Result "0-1"]
[ECO "B26"]
[WhiteElo "1421"]
[BlackElo "1877"]
[Annotator "NA"]
[PlyCount "108"]
[EventDate "2022.02.15"]
[EventType "swiss"]
[EventCountry "BAN"]
[SourceTitle "playchess.com"]
[Source "ChessBase"]
[SourceQuality "1"]
[TimeControl "5400+30"]

{[%evp 8,100,12,7,8,4,6,2,2,0,0,10,12,-18,0,-17,-2,-5,-22,-11,0,-16,-21,-31,-33,-52,-42,-65,-70,-62,-69,-162,-39,-139,-160,-154,-172,-167,-202,-232,-216,-223,-185,-176,-183,-216,-197,-171,-185,-181,-155,-139,0,-767,-106,-109,-41,-120,-118,-204,-101,-225,-247,32767,32767,-328,-295,-316,-216,-264,-254,-281,-311,-317,-338,-395,-388,-5597,-474,-629,-579,-571,-694,-853,-804,-633,-751,-1046,-677,-642,-652,-729,-786,-766,-1099]} 1. e4 {[%emt 0:00:40]} c5 {[%emt 0:00:11]} 2. Nc3 {[%emt 0:00:04]} Nc6 {[%emt 0:00:05]} 3. g3 {[%emt 0:00:13]} g6 {[%emt 0:00:06]} 4. Bg2 {[%emt 0:00:08]} Bg7 {[%emt 0:00:07]} 5. d3 {[%emt 0:00:26]} d6 {[%emt 0:00:07]} 6. Be3 {[%emt 0:00:03]} Rb8 {[%emt 0:00:06]} 7. Nge2 {[%emt 0:00:21]} b5 {[%emt 0:00:50]} 8. Qd2 {[%emt 0:01:46]} b4 {[%emt 0:00:55]} 9. Nd1 $1 {[%emt 0:00:26]} Nd4 {[%emt 0:01:14]} 10. O-O {[%emt 0:01:52]} e6 {[%emt 0:04:13]} 11. c3 {[%emt 0:10:07]} Nxe2+ {[%emt 0:00:40]} 12. Qxe2 {[%emt 0:00:12]} bxc3 {[%emt 0:00:06]} 13. bxc3 {[%emt 0:02:43]} Ba6 {[%emt 0:01:47]} 14. Qd2 {[%emt 0:21:33]} Ne7 {[%emt 0:01:42]} 15. f4 {[%emt 0:01:19]} O-O {[%emt 0:00:15]} 16. Nf2 {[%emt 0:12:58]} Qa5 {[%emt 0:02:00]} 17. Nd1 {[%emt 0:10:43]} d5 {[%emt 0:04:42]} 18. Rf2 {[%emt 0:12:41]} dxe4 {[%emt 0:01:09]} 19. Bxe4 {[%emt 0:00:03]} (19. dxe4 $17 {only move.} Rfd8 20. Qe1) 19... Nd5 {[%emt 0:00:29]} (19... Rfd8 $19 20. d4 Nf5 21. Bxf5 exf5) 20. Rc1 {[%emt 0:01:39]} ({White should try} 20. Bxd5 $15 exd5 21. d4) 20... Nxe3 {[%emt 0:00:34]} 21. Nxe3 {[%emt 0:02:49]} Rfd8 {[%emt 0:01:36]} 22. c4 {[%emt 0:04:46]} Qa3 {[%emt 0:01:41]} 23. Rd1 {[%emt 0:07:07]} (23. Qe1 $142) 23... Bd4 {[%emt 0:00:54]} 24. Kf1 {[%emt 0:01:24]} Bxe3 {[%emt 0:04:06]} 25. Qxe3 {[%emt 0:00:21] [#]} Bxc4 $1 {[%emt 0:01:11]} 26. Rdd2 {[%emt 0:06:08]} Rb1+ {[%emt 0:00:26]} 27. Kg2 {[%emt 0:00:08]} Bd5 {[%emt 0:00:50]} 28. Rfe2 $11 {[%emt 0:00:55]} Qc1 {[%emt 0:03:48]} 29. Qf2 {[%emt 0:00:50]} Qa3 {[%emt 0:07:59]} ({Black should try} 29... Qc3 $17 30. Kh3 Qa5 31. Bxd5 Rxd5) 30. Rc2 $2 {[%emt 0:00:11]} Bxe4+ $2 {[%emt 0:00:43]} (30... Qxd3 $1 $19 {is more deadly.} 31. Qf3 Bxe4 32. Qxe4 Qd1) 31. dxe4 {[%emt 0:01:24]} Rd4 {[%emt 0:00:27]} (31... Rc1 $17 32. Rxc1 Qxc1) 32. Red2 {[%emt 0:00:00]} (32. f5 $1 $15) 32... Qb4 {[%emt 0:02:54]} 33. Re2 {[%emt 0:00:13]} (33. Kh3 $17) 33... a5 {[%emt 0:00:57]} (33... Rxe4 $19 34. Kh3 Rxe2 35. Qxe2 Qd4) 34. Re3 {[%emt 0:00:32]} (34. f5 $17 {was worth a try.} Rxe4 35. fxe6 Rxe6 36. Rxe6 Qb7+ 37. Kh3) 34... Rxe4 {[%emt 0:01:24]} 35. Rxe4 {[%emt 0:00:34]} Qxe4+ {[%emt 0:00:06]} 36. Kh3 {[%emt 0:00:18]} Qd4 {[%emt 0:01:45]} 37. Qf3 {[%emt 0:00:45]} Rb8 {[%emt 0:02:38]} 38. Qa3 {[%emt 0:00:18]} Qb4 {[%emt 0:00:35]} 39. Qe3 {[%emt 0:00:08]} c4 {[%emt 0:05:46]} 40. Qd4 {[%emt 0:00:41]} Rc8 {[%emt 0:00:41]} 41. Qd7 {[%emt 0:00:11]} Qc5 {[%emt 0:00:07]} 42. Rc3 $2 {[%emt 0:00:42]} (42. Qd2) 42... h5 {[%emt 0:00:39]} (42... Qh5+ $142 43. Kg2 Qe2+ 44. Kh3 Rb8) 43. Qd2 {[%emt 0:00:36]} Qf5+ {[%emt 0:00:14]} 44. Kg2 {[%emt 0:00:04]} Qd5+ {[%emt 0:00:09]} 45. Qxd5 {[%emt 0:00:06]} exd5 {[%emt 0:00:04]} 46. Kf3 {[%emt 0:00:19]} d4 {[%emt 0:00:11]} 47. Rc1 {[%emt 0:00:14]} f5 {[%emt 0:00:11]} 48. Ke2 {[%emt 0:00:30]} Kf7 {[%emt 0:00:07]} 49. Kd2 {[%emt 0:00:04]} Ke6 {[%emt 0:00:03]} 50. Re1+ $19 {[%emt 0:00:10]} Kd6 {[%emt 0:00:04]} 51. Re5 {[%emt 0:01:14]} c3+ {[%emt 0:00:17]} 52. Kc2 {[%emt 0:00:23]} d3+ {[%emt 0:00:12]} 53. Kc1 {[%emt 0:00:29]} c2 {[%emt 0:00:05]} 54. Rb5 {[%emt 0:00:06]} d2+ {[%emt 0:00:06]} 0-1

[Event "WALTON 40th BAN-ch U20 Open 2022"]
[Site "Dhaka"]
[Date "2022.02.19"]
[Round "5.8"]
[White "Sajidul, Haque"]
[Black "Kazi Afsan Rawnak, Anan"]
[Result "0-1"]
[ECO "B92"]
[WhiteElo "1766"]
[BlackElo "1524"]
[Annotator "NA"]
[PlyCount "88"]
[EventDate "2022.02.15"]
[EventType "swiss"]
[EventCountry "BAN"]
[SourceTitle "playchess.com"]
[Source "ChessBase"]
[SourceQuality "1"]
[TimeControl "5400+30"]

1. e4 {[%emt 0:00:50]} c5 {[%emt 0:00:09]} 2. Nf3 {[%emt 0:00:34]} d6 {[%emt 0:00:08]} 3. d4 {[%emt 0:00:04]} cxd4 {[%emt 0:00:06]} 4. Nxd4 {[%emt 0:00:08]} Nf6 {[%emt 0:00:06]} 5. Nc3 {[%emt 0:00:22]} a6 {[%emt 0:00:10]} 6. Be2 {[%emt 0:02:17]} e5 {[%emt 0:00:45]} 7. Nb3 {[%emt 0:00:18]} Be7 {[%emt 0:00:30]} 8. Bg5 {[%emt 0:02:30]} Be6 {[%emt 0:00:49]} 9. Bxf6 {[%emt 0:00:29]} Bxf6 {[%emt 0:00:10]} 10. Nd5 {[%emt 0:00:07]} Nd7 {[%emt 0:00:36]} 11. O-O {[%emt 0:02:17]} Bg5 {[%emt 0:03:59]} 12. Qd3 {[%emt 0:01:16]} Nb6 {[%emt 0:07:18]} 13. Rae1 {[%emt 0:11:28]} Nxd5 {[%emt 0:05:33]} 14. exd5 {[%emt 0:00:20]} Bd7 {[%emt 0:01:34]} 15. Nd2 {[%emt 0:01:41]} O-O {[%emt 0:08:17]} 16. c4 {[%emt 0:03:09]} f5 {[%emt 0:04:07]} 17. b4 {[%emt 0:04:09]} e4 {[%emt 0:08:05]} 18. Qd4 {[%emt 0:04:02]} Bxd2 {[%emt 0:05:58]} 19. Qxd2 {[%emt 0:00:02]} f4 {[%emt 0:00:29]} 20. Bd1 {[%emt 0:02:33]} f3 {[%emt 0:15:33]} 21. Rxe4 {[%emt 0:02:21]} Bf5 {[%emt 0:01:11]} 22. Rf4 {[%emt 0:04:11]} fxg2 {[%emt 0:03:45]} 23. Re1 {[%emt 0:00:37]} Qg5 {[%emt 0:02:07]} 24. Rd4 {[%emt 0:08:13]} Qf6 {[%emt 0:03:18]} 25. Ba4 {[%emt 0:06:12]} b5 {[%emt 0:02:18]} 26. Bb3 {[%emt 0:04:59]} bxc4 {[%emt 0:00:16]} 27. Bxc4 {[%emt 0:02:17]} Rf7 {[%emt 0:01:24]} 28. a4 {[%emt 0:04:42]} Bd7 {[%emt 0:04:33]} 29. b5 {[%emt 0:06:59]} axb5 {[%emt 0:00:17]} 30. axb5 {[%emt 0:00:39]} Rb8 {[%emt 0:01:13]} 31. Rb1 {[%emt 0:02:45]} Rbf8 {[%emt 0:01:06]} 32. b6 {[%emt 0:03:49]} Bc8 {[%emt 0:00:33]} 33. Rb2 {[%emt 0:02:49]} Qe5 {[%emt 0:02:20]} 34. Rh4 {[%emt 0:08:27]} Rxf2 {[%emt 0:02:36]} 35. Qxf2 {[%emt 0:00:26]} Rxf2 {[%emt 0:00:07]} 36. Rxf2 {[%emt 0:00:10]} g5 {[%emt 0:02:09]} 37. Rh6 {[%emt 0:04:56]} Qe1+ {[%emt 0:02:40]} 38. Kxg2 {[%emt 0:00:03]} Qe4+ {[%emt 0:00:14]} 39. Kg1 {[%emt 0:01:54]} Qxc4 {[%emt 0:00:56]} 40. Rxd6 {[%emt 0:02:46]} Bh3 {[%emt 0:03:46]} 41. Rdf6 {[%emt 0:02:36]} Qg4+ {[%emt 0:00:18]} 42. Kh1 {[%emt 0:00:15]} Qd1+ {[%emt 0:00:10]} 43. Rf1 {[%emt 0:00:37]} Bxf1 {[%emt 0:00:07]} 44. Kg1 {[%emt 0:00:38]} Bh3+ {[%emt 0:00:18]} 0-1